[Event "*** SCC Grand Prix: Titled Tuesday Blitz"]
[Site "Chess.com"]
[Date "2020.10.06"]
[Round "5"]
[White "akanga001"]
[Black "zurzan"]
[Result "0-1"]
[WhiteElo "1873"]
[BlackElo "1946"]
[TimeControl "180+1"]
[EndTime "10:56:48 PDT"]
[Termination "zurzan won by checkmate"]

1. d4 {[%clk 0:03:00.9]} 1... d6 {[%clk 0:02:59.6]} 2. c4 {[%clk 0:02:59.4]}
2... f5 {[%clk 0:02:59.3]} 3. Nc3 {[%clk 0:02:57.8]} 3... Nf6 {[%clk 0:02:59.4]}
4. Bg5 {[%clk 0:02:57.8]} 4... Nbd7 {[%clk 0:02:58.8]} 5. e3 {[%clk 0:02:56.2]}
5... e6 {[%clk 0:02:58.6]} 6. Nf3 {[%clk 0:02:53.8]} 6... Be7 {[%clk 0:02:58.4]}
7. Bd3 {[%clk 0:02:48.3]} 7... O-O {[%clk 0:02:57.9]} 8. Qc2 {[%clk 0:02:47.2]}
8... a6 {[%clk 0:02:42.9]} 9. O-O {[%clk 0:02:45.3]} 9... c6 {[%clk 0:02:40.9]}
10. e4 {[%clk 0:02:31.7]} 10... fxe4 {[%clk 0:02:38.7]} 11. Nxe4 {[%clk
0:02:30.4]} 11... Nxe4 {[%clk 0:02:37.1]} 12. Bxe7 {[%clk 0:02:29.6]} 12... Qxe7
{[%clk 0:02:33]} 13. Bxe4 {[%clk 0:02:29]} 13... Nf6 {[%clk 0:02:31.9]} 14. Bd3
{[%clk 0:02:19.8]} 14... c5 {[%clk 0:02:31.3]} 15. Rae1 {[%clk 0:02:13.8]} 15...
cxd4 {[%clk 0:02:28.2]} 16. Nxd4 {[%clk 0:02:12.7]} 16... e5 {[%clk 0:02:27.3]}
17. Nb3 {[%clk 0:02:06.9]} 17... Bd7 {[%clk 0:02:18.5]} 18. Qc3 {[%clk 0:01:59]}
18... Rae8 {[%clk 0:02:07.6]} 19. c5 {[%clk 0:01:54.5]} 19... d5 {[%clk
0:02:02.5]} 20. Na5 {[%clk 0:01:43.1]} 20... d4 {[%clk 0:01:53.6]} 21. Bc4+
{[%clk 0:01:41.6]} 21... Kh8 {[%clk 0:01:50.7]} 22. Qb3 {[%clk 0:01:38.3]} 22...
Qxc5 {[%clk 0:01:06.2]} 23. Nxb7 {[%clk 0:01:36.5]} 23... Qc7 {[%clk 0:01:04.6]}
24. Bxa6 {[%clk 0:01:30.4]} 24... Bc6 {[%clk 0:00:56.8]} 25. Rc1 {[%clk
0:01:26.9]} 25... Rb8 {[%clk 0:00:38]} 26. Bb5 {[%clk 0:01:15.3]} 26... Rxb7
{[%clk 0:00:32.1]} 27. Rxc6 {[%clk 0:01:14.1]} 27... Qe7 {[%clk 0:00:26.6]} 28.
a4 {[%clk 0:01:12.4]} 28... e4 {[%clk 0:00:25.9]} 29. Re6 {[%clk 0:01:08.5]}
29... Qc5 {[%clk 0:00:25.6]} 30. Qd1 {[%clk 0:01:03.8]} 30... d3 {[%clk
0:00:24.7]} 31. Qd2 {[%clk 0:00:52.5]} 31... Qf5 {[%clk 0:00:24.4]} 32. Rd6
{[%clk 0:00:45.3]} 32... Rbf7 {[%clk 0:00:20]} 33. f3 {[%clk 0:00:39.7]} 33...
exf3 {[%clk 0:00:18.8]} 34. Rxf3 {[%clk 0:00:38.9]} 34... Qc5+ {[%clk
0:00:17.7]} 35. Qf2 {[%clk 0:00:33.5]} 35... Qxd6 {[%clk 0:00:17.9]} 36. Rxd3
{[%clk 0:00:33.2]} 36... Qe5 {[%clk 0:00:17.6]} 37. h3 {[%clk 0:00:31.1]} 37...
Ne4 {[%clk 0:00:17.3]} 38. Qe3 {[%clk 0:00:24.1]} 38... Rf1# {[%clk 0:00:15.5]}
0-1

[Event "*** SCC Grand Prix: Titled Tuesday Blitz"]
[Site "Chess.com"]
[Date "2020.10.06"]
[Round "5"]
[White "lacafi"]
[Black "MusicCityMaster"]
[Result "0-1"]
[WhiteElo "2085"]
[BlackElo "2306"]
[TimeControl "180+1"]
[EndTime "10:56:49 PDT"]
[Termination "MusicCityMaster won on time"]

1. d4 {[%clk 0:03:00.9]} 1... Nf6 {[%clk 0:02:58.4]} 2. Nf3 {[%clk 0:02:53.2]}
2... c5 {[%clk 0:02:57]} 3. e3 {[%clk 0:02:53.4]} 3... e6 {[%clk 0:02:56]} 4.
Bd3 {[%clk 0:02:53]} 4... d5 {[%clk 0:02:55.9]} 5. c3 {[%clk 0:02:53.6]} 5...
Nc6 {[%clk 0:02:55]} 6. Nbd2 {[%clk 0:02:54]} 6... Bd6 {[%clk 0:02:55.1]} 7. Qe2
{[%clk 0:02:54.5]} 7... O-O {[%clk 0:02:55.1]} 8. dxc5 {[%clk 0:02:55]} 8...
Bxc5 {[%clk 0:02:55]} 9. e4 {[%clk 0:02:55.9]} 9... dxe4 {[%clk 0:02:55]} 10.
Nxe4 {[%clk 0:02:56.8]} 10... Nxe4 {[%clk 0:02:51]} 11. Qxe4 {[%clk 0:02:57.7]}
11... f5 {[%clk 0:02:51.1]} 12. Qc4 {[%clk 0:02:57.9]} 12... Qb6 {[%clk
0:02:28.7]} 13. O-O {[%clk 0:02:52]} 13... Kh8 {[%clk 0:02:28.4]} 14. Bf4 {[%clk
0:02:44.8]} 14... Bd7 {[%clk 0:02:21.4]} 15. Ne5 {[%clk 0:01:59]} 15... Nxe5
{[%clk 0:02:17.3]} 16. Bxe5 {[%clk 0:01:58.8]} 16... Rac8 {[%clk 0:02:11.8]} 17.
Qh4 {[%clk 0:01:56.8]} 17... Rf7 {[%clk 0:01:37.6]} 18. g4 {[%clk 0:00:56.9]}
18... Be7 {[%clk 0:01:30.9]} 19. g5 {[%clk 0:00:57.1]} 19... Kg8 {[%clk
0:01:16.2]} 20. Qh5 {[%clk 0:00:47.6]} 20... g6 {[%clk 0:01:10.4]} 21. Qh6
{[%clk 0:00:39.2]} 21... Qc5 {[%clk 0:00:56]} 22. Bd4 {[%clk 0:00:36.8]} 22...
Qd5 {[%clk 0:00:54.2]} 23. Rae1 {[%clk 0:00:36.7]} 23... Qf3 {[%clk 0:00:33.3]}
24. Re3 {[%clk 0:00:34.9]} 24... Qf4 {[%clk 0:00:27.1]} 25. Rg3 {[%clk
0:00:22.9]} 25... Bc6 {[%clk 0:00:21.5]} 26. Bc4 {[%clk 0:00:16]} 26... Bd5
{[%clk 0:00:15.6]} 27. Bxd5 {[%clk 0:00:15.8]} 27... exd5 {[%clk 0:00:16.3]} 28.
Re1 {[%clk 0:00:15.4]} 28... Re8 {[%clk 0:00:15.4]} 29. Be5 {[%clk 0:00:12.6]}
29... Bf8 {[%clk 0:00:14.4]} 30. Qxf8+ {[%clk 0:00:09.2]} 30... Kxf8 {[%clk
0:00:13.5]} 0-1

[Event "*** SCC Grand Prix: Titled Tuesday Blitz"]
[Site "Chess.com"]
[Date "2020.10.06"]
[Round "5"]
[White "Angel_Hranitel_37"]
[Black "crescentmoon2411"]
[Result "1/2-1/2"]
[WhiteElo "2537"]
[BlackElo "2793"]
[TimeControl "180+1"]
[EndTime "10:56:50 PDT"]
[Termination "Game drawn by repetition"]

1. d4 {[%clk 0:03:00]} 1... Nf6 {[%clk 0:02:59.9]} 2. Nf3 {[%clk 0:03:00.4]}
2... c5 {[%clk 0:03:00.4]} 3. d5 {[%clk 0:03:00.4]} 3... g6 {[%clk 0:02:59.2]}
4. c4 {[%clk 0:02:56.4]} 4... Bg7 {[%clk 0:02:59.1]} 5. Qc2 {[%clk 0:02:55.9]}
5... O-O {[%clk 0:02:58]} 6. e4 {[%clk 0:02:56.2]} 6... d6 {[%clk 0:02:58.3]} 7.
Nc3 {[%clk 0:02:51.9]} 7... e6 {[%clk 0:02:57.1]} 8. Be2 {[%clk 0:02:51.2]} 8...
exd5 {[%clk 0:02:57.1]} 9. cxd5 {[%clk 0:02:51.5]} 9... Re8 {[%clk 0:02:55.1]}
10. O-O {[%clk 0:02:50.9]} 10... a6 {[%clk 0:02:53.9]} 11. a4 {[%clk 0:02:50.1]}
11... Bg4 {[%clk 0:02:50]} 12. Bf4 {[%clk 0:02:28.7]} 12... Nh5 {[%clk
0:02:41.5]} 13. Be3 {[%clk 0:02:21.5]} 13... Nd7 {[%clk 0:02:37.6]} 14. h3
{[%clk 0:02:21.3]} 14... Bxf3 {[%clk 0:02:35.9]} 15. Bxf3 {[%clk 0:02:22.2]}
15... Nhf6 {[%clk 0:02:33]} 16. Qb3 {[%clk 0:02:09.3]} 16... Rb8 {[%clk
0:02:31.2]} 17. a5 {[%clk 0:02:07.6]} 17... b5 {[%clk 0:02:22.9]} 18. axb6
{[%clk 0:02:07.8]} 18... Qxb6 {[%clk 0:02:22.9]} 19. Qxb6 {[%clk 0:01:54.6]}
19... Rxb6 {[%clk 0:02:23.8]} 20. Ra2 {[%clk 0:01:49.6]} 20... Reb8 {[%clk
0:02:23.1]} 21. Rfa1 {[%clk 0:01:47]} 21... Ne8 {[%clk 0:02:10.4]} 22. Bg4
{[%clk 0:01:28.9]} 22... Ne5 {[%clk 0:01:58]} 23. Be2 {[%clk 0:01:28.9]} 23...
Nc7 {[%clk 0:01:58]} 24. f4 {[%clk 0:01:19.3]} 24... Nd7 {[%clk 0:01:57.7]} 25.
Na4 {[%clk 0:01:11]} 25... Rb4 {[%clk 0:01:56.9]} 26. Bd3 {[%clk 0:01:06]} 26...
Rb3 {[%clk 0:01:54.9]} 27. Ra3 {[%clk 0:00:46.2]} 27... R8b4 {[%clk 0:01:45.2]}
28. Rxb3 {[%clk 0:00:44.8]} 28... Rxb3 {[%clk 0:01:45.3]} 29. Ra3 {[%clk
0:00:45.2]} 29... Rb4 {[%clk 0:01:43.2]} 30. Bd2 {[%clk 0:00:35.4]} 30... Rb8
{[%clk 0:01:41.5]} 31. Ba5 {[%clk 0:00:29]} 31... Nb5 {[%clk 0:01:39.1]} 32. Rb3
{[%clk 0:00:28.9]} 32... Re8 {[%clk 0:01:25.7]} 33. Nc3 {[%clk 0:00:27.4]} 33...
Bxc3 {[%clk 0:01:17.7]} 34. bxc3 {[%clk 0:00:22]} 34... c4 {[%clk 0:01:14.8]}
35. Bxc4 {[%clk 0:00:20.5]} 35... Nc5 {[%clk 0:01:11.3]} 36. Bxb5 {[%clk
0:00:19.6]} 36... axb5 {[%clk 0:01:11.5]} 37. Rxb5 {[%clk 0:00:20.5]} 37... Nxe4
{[%clk 0:01:09.9]} 38. Bb4 {[%clk 0:00:19.3]} 38... f5 {[%clk 0:01:07.5]} 39.
Rb7 {[%clk 0:00:18.9]} 39... Ra8 {[%clk 0:01:05.6]} 40. Re7 {[%clk 0:00:17.4]}
40... Ra1+ {[%clk 0:01:05.3]} 41. Kh2 {[%clk 0:00:17.6]} 41... h5 {[%clk
0:01:05.1]} 42. Re6 {[%clk 0:00:17.5]} 42... Kf7 {[%clk 0:01:04]} 43. Bxd6
{[%clk 0:00:17.6]} 43... h4 {[%clk 0:01:03.8]} 44. Re7+ {[%clk 0:00:07.1]} 44...
Kg8 {[%clk 0:01:00.5]} 45. Re8+ {[%clk 0:00:05.3]} 45... Kf7 {[%clk 0:01:00.1]}
46. Re7+ {[%clk 0:00:05.6]} 46... Kg8 {[%clk 0:01:00.4]} 47. Re8+ {[%clk
0:00:06.1]} 47... Kf7 {[%clk 0:00:58.4]} 48. Re7+ {[%clk 0:00:06.1]} 1/2-1/2

[Event "*** SCC Grand Prix: Titled Tuesday Blitz"]
[Site "Chess.com"]
[Date "2020.10.06"]
[Round "5"]
[White "zubridis"]
[Black "penguingm1"]
[Result "0-1"]
[WhiteElo "2467"]
[BlackElo "2844"]
[TimeControl "180+1"]
[EndTime "10:56:50 PDT"]
[Termination "penguingm1 won by resignation"]

1. e4 {[%clk 0:03:00.9]} 1... e5 {[%clk 0:02:59.1]} 2. Nf3 {[%clk 0:03:00.4]}
2... Nc6 {[%clk 0:02:58]} 3. Bb5 {[%clk 0:03:00.8]} 3... g6 {[%clk 0:02:58.1]}
4. d4 {[%clk 0:02:59.5]} 4... exd4 {[%clk 0:02:58.3]} 5. c3 {[%clk 0:02:59.4]}
5... a6 {[%clk 0:02:58.2]} 6. Bc4 {[%clk 0:02:57]} 6... Bg7 {[%clk 0:02:57.5]}
7. cxd4 {[%clk 0:02:56.1]} 7... b5 {[%clk 0:02:57.4]} 8. Bb3 {[%clk 0:02:51.5]}
8... Na5 {[%clk 0:02:57.6]} 9. Bc2 {[%clk 0:02:51.4]} 9... Ne7 {[%clk
0:02:57.5]} 10. O-O {[%clk 0:02:44.5]} 10... O-O {[%clk 0:02:44.1]} 11. Nc3
{[%clk 0:02:33.5]} 11... d6 {[%clk 0:02:41.8]} 12. h3 {[%clk 0:02:31.9]} 12...
c5 {[%clk 0:02:32.8]} 13. b3 {[%clk 0:02:20.5]} 13... cxd4 {[%clk 0:02:10.1]}
14. Nxd4 {[%clk 0:02:19.1]} 14... Bb7 {[%clk 0:02:07.9]} 15. Be3 {[%clk
0:02:15.7]} 15... d5 {[%clk 0:01:33.3]} 16. Qd2 {[%clk 0:01:58.7]} 16... b4
{[%clk 0:01:20.8]} 17. Nxd5 {[%clk 0:01:53]} 17... Nxd5 {[%clk 0:01:18.7]} 18.
exd5 {[%clk 0:01:53.9]} 18... Qxd5 {[%clk 0:01:19.1]} 19. f3 {[%clk 0:01:49.6]}
19... Nc6 {[%clk 0:01:08.1]} 20. Be4 {[%clk 0:01:41]} 20... Qd7 {[%clk
0:00:19.7]} 21. Nxc6 {[%clk 0:01:40]} 21... Bxc6 {[%clk 0:00:16.7]} 22. Qxd7
{[%clk 0:01:37]} 22... Bxd7 {[%clk 0:00:16.1]} 23. Rad1 {[%clk 0:01:28.4]} 23...
Bb5 {[%clk 0:00:16.1]} 24. Bxa8 {[%clk 0:01:26]} 24... Bxf1 {[%clk 0:00:15.9]}
25. Bc6 {[%clk 0:01:14.3]} 25... Be2 {[%clk 0:00:10.4]} 26. Rd2 {[%clk
0:01:12.7]} 26... Bb5 {[%clk 0:00:06.1]} 27. Bxb5 {[%clk 0:01:11.1]} 27... axb5
{[%clk 0:00:07]} 28. Rd5 {[%clk 0:01:10.7]} 28... Re8 {[%clk 0:00:04.2]} 29. Kf2
{[%clk 0:01:05.7]} 29... Ra8 {[%clk 0:00:03.6]} 30. Rxb5 {[%clk 0:01:01.8]}
30... Rxa2+ {[%clk 0:00:03.5]} 31. Kg3 {[%clk 0:01:02.4]} 31... Bc3 {[%clk
0:00:03.5]} 32. Bh6 {[%clk 0:01:00.9]} 32... f5 {[%clk 0:00:03.5]} 33. Rb7
{[%clk 0:00:59.1]} 33... Rb2 {[%clk 0:00:03.5]} 34. Kf4 {[%clk 0:00:52.4]} 34...
Rxb3 {[%clk 0:00:03.7]} 35. g4 {[%clk 0:00:52.5]} 35... fxg4 {[%clk 0:00:03.7]}
36. hxg4 {[%clk 0:00:52.5]} 36... Bd2+ {[%clk 0:00:04]} 37. Ke5 {[%clk
0:00:51.4]} 37... Bxh6 {[%clk 0:00:04.4]} 38. f4 {[%clk 0:00:47.2]} 38... Re3+
{[%clk 0:00:03.9]} 39. Kd4 {[%clk 0:00:45.6]} 39... Bxf4 {[%clk 0:00:04]} 40.
Rxb4 {[%clk 0:00:44.7]} 40... Re8 {[%clk 0:00:03.6]} 41. Kd5 {[%clk 0:00:44.2]}
41... Bg5 {[%clk 0:00:03.6]} 42. Kc6 {[%clk 0:00:43.7]} 42... Kg7 {[%clk
0:00:03.9]} 43. Kd7 {[%clk 0:00:43.5]} 43... Re7+ {[%clk 0:00:04.4]} 44. Kd6
{[%clk 0:00:43.7]} 44... Bf6 {[%clk 0:00:04.3]} 0-1

[Event "*** SCC Grand Prix: Titled Tuesday Blitz"]
[Site "Chess.com"]
[Date "2020.10.06"]
[Round "5"]
[White "nocnypako"]
[Black "exoticprincess"]
[Result "0-1"]
[WhiteElo "2550"]
[BlackElo "2880"]
[TimeControl "180+1"]
[EndTime "10:56:51 PDT"]
[Termination "exoticprincess won on time"]

1. d4 {[%clk 0:03:00.9]} 1... d5 {[%clk 0:02:59.2]} 2. c4 {[%clk 0:03:00.7]}
2... c6 {[%clk 0:03:00.1]} 3. Nc3 {[%clk 0:03:00.8]} 3... Nf6 {[%clk 0:03:00.4]}
4. Nf3 {[%clk 0:03:00.9]} 4... dxc4 {[%clk 0:03:00.7]} 5. a4 {[%clk 0:03:00.3]}
5... a5 {[%clk 0:03:01]} 6. e4 {[%clk 0:02:54.6]} 6... Bg4 {[%clk 0:03:00.9]} 7.
Bxc4 {[%clk 0:02:53.3]} 7... e6 {[%clk 0:03:01.3]} 8. Be3 {[%clk 0:02:49.2]}
8... Bb4 {[%clk 0:03:01.6]} 9. Qc2 {[%clk 0:02:42.5]} 9... Nbd7 {[%clk
0:03:01.2]} 10. h3 {[%clk 0:02:37]} 10... Bh5 {[%clk 0:03:00]} 11. g4 {[%clk
0:02:36.5]} 11... Bg6 {[%clk 0:02:59.8]} 12. Nd2 {[%clk 0:02:36.5]} 12... Nd5
{[%clk 0:02:53.6]} 13. O-O-O {[%clk 0:02:22.3]} 13... Nxe3 {[%clk 0:02:51.5]}
14. fxe3 {[%clk 0:02:23.2]} 14... O-O {[%clk 0:02:46.2]} 15. h4 {[%clk
0:02:22.1]} 15... h6 {[%clk 0:02:46.5]} 16. Rdg1 {[%clk 0:02:05.9]} 16... b5
{[%clk 0:02:46.1]} 17. Bd3 {[%clk 0:02:01.7]} 17... bxa4 {[%clk 0:02:42.5]} 18.
h5 {[%clk 0:01:50.9]} 18... Bh7 {[%clk 0:02:40.7]} 19. g5 {[%clk 0:01:50.8]}
19... hxg5 {[%clk 0:02:39.6]} 20. h6 {[%clk 0:01:48.4]} 20... g6 {[%clk
0:02:31.8]} 21. e5 {[%clk 0:01:47.6]} 21... a3 {[%clk 0:02:28.8]} 22. bxa3
{[%clk 0:01:38.7]} 22... Bxa3+ {[%clk 0:02:28.4]} 23. Kd1 {[%clk 0:01:39.1]}
23... Rb8 {[%clk 0:02:28.4]} 24. Nc4 {[%clk 0:01:37.6]} 24... Be7 {[%clk
0:02:25.6]} 25. Ne4 {[%clk 0:01:36.1]} 25... c5 {[%clk 0:02:20.5]} 26. Ke2
{[%clk 0:01:12.7]} 26... cxd4 {[%clk 0:02:20]} 27. exd4 {[%clk 0:01:13.5]} 27...
Rb4 {[%clk 0:02:18.5]} 28. Rb1 {[%clk 0:00:47.3]} 28... g4 {[%clk 0:02:18]} 29.
Ncd6 {[%clk 0:00:42.5]} 29... Rxd4 {[%clk 0:02:15.2]} 30. Qc3 {[%clk 0:00:31.3]}
30... Rd5 {[%clk 0:02:15.3]} 31. Rb5 {[%clk 0:00:20.8]} 31... Rxb5 {[%clk
0:02:01.5]} 32. Bxb5 {[%clk 0:00:21.7]} 32... Nb6 {[%clk 0:01:59.8]} 33. Qc6
{[%clk 0:00:17.3]} 33... Nd5 {[%clk 0:01:58.9]} 34. Rc1 {[%clk 0:00:15.9]} 34...
g5 {[%clk 0:01:56.3]} 35. Nc5 {[%clk 0:00:14.2]} 35... Nf4+ {[%clk 0:01:52.6]}
36. Kf1 {[%clk 0:00:13.5]} 36... g3 {[%clk 0:01:51.2]} 37. Nd7 {[%clk 0:00:13]}
37... g2+ {[%clk 0:01:51.3]} 38. Kf2 {[%clk 0:00:12.7]} 38... g4 {[%clk
0:01:45.1]} 39. Nxf8 {[%clk 0:00:12.5]} 39... Bxf8 {[%clk 0:01:45.2]} 40. Qe8
{[%clk 0:00:10.4]} 40... Qh4+ {[%clk 0:01:44.3]} 41. Ke3 {[%clk 0:00:09.6]}
41... Qg3+ {[%clk 0:01:44.4]} 42. Kd4 {[%clk 0:00:09.9]} 42... g1=Q+ {[%clk
0:01:41.9]} 43. Rxg1 {[%clk 0:00:09.1]} 43... Qxg1+ {[%clk 0:01:42.8]} 44. Kc4
{[%clk 0:00:09.3]} 44... Bd3+ {[%clk 0:01:31.6]} 45. Kb3 {[%clk 0:00:08.4]}
45... Qb1+ {[%clk 0:01:31.5]} 46. Ka3 {[%clk 0:00:08.6]} 46... Qc1+ {[%clk
0:01:23.6]} 47. Kb3 {[%clk 0:00:08.2]} 47... Bc2+ {[%clk 0:01:22.4]} 48. Kc4
{[%clk 0:00:05.7]} 48... Bg6+ {[%clk 0:01:13.8]} 49. Kb3 {[%clk 0:00:05.8]}
49... Qc2+ {[%clk 0:01:10.8]} 50. Ka3 {[%clk 0:00:05.2]} 50... Qc3+ {[%clk
0:01:10.9]} 51. Ka2 {[%clk 0:00:04.9]} 51... Qxe5 {[%clk 0:01:10.7]} 52. Nc8
{[%clk 0:00:02.4]} 52... Qd5+ {[%clk 0:01:07.4]} 0-1

[Event "*** SCC Grand Prix: Titled Tuesday Blitz"]
[Site "Chess.com"]
[Date "2020.10.06"]
[Round "5"]
[White "Salem-AR"]
[Black "Gahan-MG"]
[Result "0-1"]
[WhiteElo "2883"]
[BlackElo "2583"]
[TimeControl "180+1"]
[EndTime "10:56:52 PDT"]
[Termination "Gahan-MG won on time"]

1. d4 {[%clk 0:03:00.9]} 1... Nf6 {[%clk 0:02:59.8]} 2. c4 {[%clk 0:03:01.4]}
2... g6 {[%clk 0:02:59.9]} 3. Nc3 {[%clk 0:03:01]} 3... d5 {[%clk 0:03:00.3]} 4.
cxd5 {[%clk 0:03:01.9]} 4... Nxd5 {[%clk 0:03:01.2]} 5. e4 {[%clk 0:03:02.7]}
5... Nxc3 {[%clk 0:03:01.7]} 6. bxc3 {[%clk 0:03:03.6]} 6... Bg7 {[%clk
0:03:02.3]} 7. Bc4 {[%clk 0:03:04.5]} 7... c5 {[%clk 0:03:02.7]} 8. Ne2 {[%clk
0:03:05.4]} 8... O-O {[%clk 0:03:03.3]} 9. Be3 {[%clk 0:03:05.9]} 9... Nc6
{[%clk 0:03:03.8]} 10. Rc1 {[%clk 0:03:06.2]} 10... cxd4 {[%clk 0:02:52]} 11.
cxd4 {[%clk 0:03:07.1]} 11... Qa5+ {[%clk 0:02:52]} 12. Kf1 {[%clk 0:03:07.5]}
12... Rd8 {[%clk 0:02:45.6]} 13. h4 {[%clk 0:03:06.9]} 13... h5 {[%clk 0:02:44]}
14. f3 {[%clk 0:03:06.2]} 14... Bd7 {[%clk 0:02:38.6]} 15. Kf2 {[%clk
0:02:47.5]} 15... Be8 {[%clk 0:02:37.3]} 16. d5 {[%clk 0:02:05.7]} 16... Ne5
{[%clk 0:02:31.6]} 17. Bb3 {[%clk 0:02:02.7]} 17... Bb5 {[%clk 0:02:30.8]} 18.
Nf4 {[%clk 0:02:02.9]} 18... Bh6 {[%clk 0:02:27.4]} 19. Qd4 {[%clk 0:01:43.3]}
19... Bxf4 {[%clk 0:02:25.5]} 20. Bxf4 {[%clk 0:01:44.2]} 20... Nd3+ {[%clk
0:02:24.4]} 21. Kg3 {[%clk 0:01:44.5]} 21... Nxf4 {[%clk 0:01:58]} 22. Kxf4
{[%clk 0:01:44.2]} 22... Rac8 {[%clk 0:01:57.1]} 23. d6 {[%clk 0:01:32.6]} 23...
exd6 {[%clk 0:01:25.3]} 24. Kg5 {[%clk 0:01:19.6]} 24... Bd3+ {[%clk 0:01:10.8]}
25. Kf6 {[%clk 0:01:04.6]} 25... d5 {[%clk 0:01:00.7]} 26. Rxc8 {[%clk
0:00:22.3]} 26... Rxc8 {[%clk 0:00:58.9]} 27. Qxd5 {[%clk 0:00:22.8]} 27... Rc6+
{[%clk 0:00:52.1]} 28. Kg5 {[%clk 0:00:21.9]} 28... Qd2+ {[%clk 0:00:51.7]} 29.
f4 {[%clk 0:00:21.8]} 29... Qxg2+ {[%clk 0:00:36]} 30. Kh6 {[%clk 0:00:18]}
30... g5+ {[%clk 0:00:33.5]} 31. Qxc6 {[%clk 0:00:02.4]} 31... bxc6 {[%clk
0:00:31.2]} 32. hxg5 {[%clk 0:00:01.9]} 32... Qxh1 {[%clk 0:00:30.2]} 33. g6
{[%clk 0:00:01.2]} 33... Qxe4 {[%clk 0:00:25.7]} 34. Bxf7+ {[%clk 0:00:02]}
34... Kf8 {[%clk 0:00:25.6]} 0-1

[Event "*** SCC Grand Prix: Titled Tuesday Blitz"]
[Site "Chess.com"]
[Date "2020.10.06"]
[Round "5"]
[White "AniJak"]
[Black "hungrycaterpillar4"]
[Result "0-1"]
[WhiteElo "2376"]
[BlackElo "2622"]
[TimeControl "180+1"]
[EndTime "10:56:57 PDT"]
[Termination "hungrycaterpillar4 won by resignation"]

1. e4 {[%clk 0:03:00.9]} 1... c5 {[%clk 0:03:00.3]} 2. Nc3 {[%clk 0:03:01.1]}
2... g6 {[%clk 0:02:58.1]} 3. g3 {[%clk 0:03:01.3]} 3... Bg7 {[%clk 0:02:58.5]}
4. Bg2 {[%clk 0:03:01.9]} 4... Nc6 {[%clk 0:02:59.2]} 5. d3 {[%clk 0:03:02.3]}
5... d6 {[%clk 0:02:59.1]} 6. Nh3 {[%clk 0:03:02.5]} 6... h6 {[%clk 0:02:55.6]}
7. O-O {[%clk 0:03:01.6]} 7... e5 {[%clk 0:02:51]} 8. Be3 {[%clk 0:03:01.4]}
8... Nge7 {[%clk 0:02:49.6]} 9. Qd2 {[%clk 0:03:01.3]} 9... Nd4 {[%clk
0:02:47.9]} 10. f4 {[%clk 0:02:58.9]} 10... exf4 {[%clk 0:02:46.6]} 11. Nxf4
{[%clk 0:02:55.6]} 11... O-O {[%clk 0:02:44.8]} 12. Nfd5 {[%clk 0:02:52.8]}
12... Nxd5 {[%clk 0:02:44.1]} 13. Nxd5 {[%clk 0:02:51.6]} 13... Kh7 {[%clk
0:02:37.3]} 14. c3 {[%clk 0:02:51.6]} 14... Ne6 {[%clk 0:02:36.8]} 15. Rf2
{[%clk 0:02:46.9]} 15... Nc7 {[%clk 0:02:16.5]} 16. Raf1 {[%clk 0:02:34.5]}
16... Nxd5 {[%clk 0:02:14.5]} 17. exd5 {[%clk 0:02:35.4]} 17... f5 {[%clk
0:02:11.5]} 18. d4 {[%clk 0:02:34.7]} 18... b6 {[%clk 0:02:07.6]} 19. b4 {[%clk
0:02:28.1]} 19... cxb4 {[%clk 0:02:03.1]} 20. cxb4 {[%clk 0:02:29]} 20... Ba6
{[%clk 0:01:56]} 21. Re1 {[%clk 0:02:27.4]} 21... Qd7 {[%clk 0:01:52.2]} 22. Bf1
{[%clk 0:02:16.9]} 22... Bxf1 {[%clk 0:01:51.2]} 23. Rfxf1 {[%clk 0:02:16.4]}
23... Qb5 {[%clk 0:01:49.5]} 24. Bf4 {[%clk 0:02:12.7]} 24... Qxd5 {[%clk
0:01:49.6]} 25. Re7 {[%clk 0:02:11.2]} 25... Rf7 {[%clk 0:01:49.5]} 26. Rfe1
{[%clk 0:02:10.2]} 26... g5 {[%clk 0:01:31.7]} 27. Rxf7 {[%clk 0:02:06.3]} 27...
Qxf7 {[%clk 0:01:27.6]} 28. Bxd6 {[%clk 0:02:06.3]} 28... Re8 {[%clk 0:01:08.9]}
29. Be5 {[%clk 0:01:57]} 29... Qe6 {[%clk 0:00:42.7]} 30. d5 {[%clk 0:01:24.2]}
30... Qd7 {[%clk 0:00:32]} 31. Bxg7 {[%clk 0:01:20.8]} 31... Rxe1+ {[%clk
0:00:31.4]} 32. Qxe1 {[%clk 0:01:20.9]} 32... Kxg7 {[%clk 0:00:32.3]} 33. Qe5+
{[%clk 0:01:19.6]} 33... Kf7 {[%clk 0:00:32.8]} 34. Kf2 {[%clk 0:01:14.5]} 34...
Qc8 {[%clk 0:00:31.8]} 35. Ke1 {[%clk 0:00:44.6]} 35... Qc1+ {[%clk 0:00:31.4]}
36. Ke2 {[%clk 0:00:42.4]} 36... Qc4+ {[%clk 0:00:31.9]} 37. Kf2 {[%clk
0:00:38.3]} 37... Qxa2+ {[%clk 0:00:31.9]} 38. Kg1 {[%clk 0:00:37.2]} 38... Qb1+
{[%clk 0:00:31.6]} 39. Kg2 {[%clk 0:00:36.1]} 39... Qe4+ {[%clk 0:00:29.7]} 40.
Qxe4 {[%clk 0:00:35.9]} 40... fxe4 {[%clk 0:00:30.6]} 41. Kf2 {[%clk 0:00:36.3]}
41... Kf6 {[%clk 0:00:31.2]} 42. Ke3 {[%clk 0:00:36.1]} 42... Ke5 {[%clk
0:00:31.9]} 43. d6 {[%clk 0:00:36]} 43... Kxd6 {[%clk 0:00:32.5]} 44. Kxe4
{[%clk 0:00:36.4]} 44... a5 {[%clk 0:00:33.2]} 45. bxa5 {[%clk 0:00:36.2]} 45...
bxa5 {[%clk 0:00:34.1]} 46. Kf5 {[%clk 0:00:36.2]} 46... a4 {[%clk 0:00:34]} 47.
Kg6 {[%clk 0:00:37.1]} 47... a3 {[%clk 0:00:28.5]} 48. Kxh6 {[%clk 0:00:37.3]}
48... a2 {[%clk 0:00:29.4]} 49. Kxg5 {[%clk 0:00:38.1]} 49... a1=Q {[%clk
0:00:30.3]} 50. h4 {[%clk 0:00:38.6]} 50... Qg7+ {[%clk 0:00:30]} 51. Kf4 {[%clk
0:00:37.8]} 51... Qe5+ {[%clk 0:00:30.5]} 52. Kg4 {[%clk 0:00:37.8]} 52... Ke6
{[%clk 0:00:31.4]} 53. h5 {[%clk 0:00:38.3]} 53... Qf5+ {[%clk 0:00:32.3]} 54.
Kh4 {[%clk 0:00:38.6]} 54... Kf6 {[%clk 0:00:31.7]} 55. g4 {[%clk 0:00:39]}
55... Qg5+ {[%clk 0:00:31.9]} 56. Kh3 {[%clk 0:00:39.6]} 56... Ke5 {[%clk
0:00:32.5]} 0-1